[Event "Early-Titled-Tuesday-Blitz-March-19-2024"]
[Site "Chess.com"]
[Date "2024.03.19"]
[Round "2"]
[White "tarno17"]
[Black "sorch29"]
[Result "0-1"]
[WhiteElo "2198"]
[BlackElo "2495"]
[TimeControl "180+1"]
[EndTime "8:18:46 PDT"]
[Termination "sorch29 won by checkmate"]

1. e4 {[%clk 0:03:00.9]} 1... c5 {[%clk 0:02:58.3]} 2. Nf3 {[%clk 0:02:59.9]}
2... Nc6 {[%clk 0:02:58.9]} 3. Bb5 {[%clk 0:02:59.4]} 3... g6 {[%clk 0:02:55]}
4. O-O {[%clk 0:02:57.4]} 4... Bg7 {[%clk 0:02:55]} 5. c3 {[%clk 0:02:54.3]}
5... Nf6 {[%clk 0:02:54.3]} 6. Re1 {[%clk 0:02:51.6]} 6... O-O {[%clk
0:02:53.9]} 7. Ba4 {[%clk 0:02:40]} 7... d5 {[%clk 0:02:27.2]} 8. e5 {[%clk
0:02:20.3]} 8... Nd7 {[%clk 0:02:25]} 9. d4 {[%clk 0:02:17.6]} 9... cxd4 {[%clk
0:02:23.6]} 10. cxd4 {[%clk 0:02:15.3]} 10... Nb6 {[%clk 0:02:23.6]} 11. Bc2
{[%clk 0:02:06.7]} 11... Bg4 {[%clk 0:02:22.9]} 12. Be3 {[%clk 0:02:02.2]} 12...
Rc8 {[%clk 0:02:03.7]} 13. Nbd2 {[%clk 0:01:51.1]} 13... Nb4 {[%clk 0:02:02.1]}
14. Bb1 {[%clk 0:01:43.5]} 14... Bf5 {[%clk 0:01:40.2]} 15. Bxf5 {[%clk
0:01:23.1]} 15... gxf5 {[%clk 0:01:39.5]} 16. Nh4 {[%clk 0:01:17.8]} 16... e6
{[%clk 0:01:28.8]} 17. Qh5 {[%clk 0:01:13.7]} 17... Nc2 {[%clk 0:00:46.3]} 18.
Ndf3 {[%clk 0:00:49.7]} 18... Nxa1 {[%clk 0:00:22]} 19. Rxa1 {[%clk 0:00:49.6]}
19... f6 {[%clk 0:00:17.9]} 20. exf6 {[%clk 0:00:25.7]} 20... Qxf6 {[%clk
0:00:16.9]} 21. Ne5 {[%clk 0:00:18.7]} 21... f4 {[%clk 0:00:07.9]} 22. Bd2
{[%clk 0:00:13.8]} 22... Nc4 {[%clk 0:00:06.7]} 23. Bb4 {[%clk 0:00:12.9]} 23...
Rfe8 {[%clk 0:00:05.2]} 24. Rf1 {[%clk 0:00:07.5]} 24... Nxe5 {[%clk 0:00:05.4]}
25. dxe5 {[%clk 0:00:06.6]} 25... Qf7 {[%clk 0:00:06.1]} 26. Qg4 {[%clk
0:00:05.7]} 26... Kh8 {[%clk 0:00:06]} 27. Bd6 {[%clk 0:00:06]} 27... Rc4 {[%clk
0:00:05.7]} 28. Qh3 {[%clk 0:00:05.3]} 28... f3 {[%clk 0:00:05.6]} 29. Nxf3
{[%clk 0:00:04.5]} 29... Rf4 {[%clk 0:00:06.3]} 30. Ng5 {[%clk 0:00:04.5]} 30...
Qg6 {[%clk 0:00:06.1]} 31. Nf3 {[%clk 0:00:04]} 31... d4 {[%clk 0:00:04.8]} 32.
Rd1 {[%clk 0:00:03.8]} 32... Qg4 {[%clk 0:00:05.2]} 33. Qxg4 {[%clk 0:00:02.7]}
33... Rxg4 {[%clk 0:00:06.1]} 34. Nxd4 {[%clk 0:00:03]} 34... Bf8 {[%clk
0:00:05.8]} 35. Bxf8 {[%clk 0:00:02.3]} 35... Rxf8 {[%clk 0:00:06.7]} 36. Nxe6
{[%clk 0:00:03.1]} 36... Re8 {[%clk 0:00:07.4]} 37. Nc7 {[%clk 0:00:03]} 37...
Rxe5 {[%clk 0:00:07.3]} 38. h3 {[%clk 0:00:02.7]} 38... Rg8 {[%clk 0:00:07.2]}
39. Nd5 {[%clk 0:00:01.5]} 39... Rd8 {[%clk 0:00:06.6]} 40. Nc3 {[%clk
0:00:01.9]} 40... Rxd1+ {[%clk 0:00:06.5]} 41. Nxd1 {[%clk 0:00:01.9]} 41...
Re1+ {[%clk 0:00:07.2]} 42. Kh2 {[%clk 0:00:02.1]} 42... Rxd1 {[%clk 0:00:08.1]}
43. Kg3 {[%clk 0:00:01.9]} 43... Rd2 {[%clk 0:00:09]} 44. b4 {[%clk 0:00:01.9]}
44... Rxa2 {[%clk 0:00:09.3]} 45. f3 {[%clk 0:00:02.8]} 45... Rb2 {[%clk
0:00:10.2]} 46. Kf4 {[%clk 0:00:03.6]} 46... Rxb4+ {[%clk 0:00:10.9]} 47. Kg5
{[%clk 0:00:04.5]} 47... Rb2 {[%clk 0:00:11.5]} 48. g4 {[%clk 0:00:05.3]} 48...
Rf2 {[%clk 0:00:11.7]} 49. f4 {[%clk 0:00:05.3]} 49... b5 {[%clk 0:00:12.6]} 50.
f5 {[%clk 0:00:05.9]} 50... b4 {[%clk 0:00:13.5]} 51. f6 {[%clk 0:00:05.8]}
51... b3 {[%clk 0:00:14.4]} 52. h4 {[%clk 0:00:06.1]} 52... b2 {[%clk
0:00:15.3]} 53. h5 {[%clk 0:00:06.6]} 53... b1=Q {[%clk 0:00:15.8]} 54. Kh6
{[%clk 0:00:07.3]} 54... Qc1+ {[%clk 0:00:16.3]} 55. g5 {[%clk 0:00:08.1]} 55...
Rf5 {[%clk 0:00:16.2]} 56. f7 {[%clk 0:00:07.4]} 56... Qxg5# {[%clk 0:00:16]}
0-1

[Event "Early-Titled-Tuesday-Blitz-March-19-2024"]
[Site "Chess.com"]
[Date "2024.03.19"]
[Round "2"]
[White "GMBenjaminBok"]
[Black "RandomNoob04"]
[Result "1-0"]
[WhiteElo "2969"]
[BlackElo "2658"]
[TimeControl "180+1"]
[EndTime "8:18:47 PDT"]
[Termination "GMBenjaminBok won by resignation"]

1. d4 {[%clk 0:03:00.9]} 1... Nf6 {[%clk 0:03:00]} 2. c4 {[%clk 0:02:59.3]} 2...
c5 {[%clk 0:03:00.7]} 3. Nf3 {[%clk 0:02:58.2]} 3... cxd4 {[%clk 0:03:01.6]} 4.
Nxd4 {[%clk 0:02:58.9]} 4... b6 {[%clk 0:03:01.7]} 5. Nc3 {[%clk 0:02:56.5]}
5... Bb7 {[%clk 0:03:02.1]} 6. f3 {[%clk 0:02:57.2]} 6... e6 {[%clk 0:02:54.3]}
7. e4 {[%clk 0:02:56.5]} 7... d6 {[%clk 0:02:55]} 8. Be2 {[%clk 0:02:56.4]} 8...
Be7 {[%clk 0:02:55.1]} 9. Be3 {[%clk 0:02:56.5]} 9... O-O {[%clk 0:02:55.6]} 10.
O-O {[%clk 0:02:57.1]} 10... Nbd7 {[%clk 0:02:55.9]} 11. Qd2 {[%clk 0:02:57.4]}
11... a6 {[%clk 0:02:54.9]} 12. Kh1 {[%clk 0:02:56.6]} 12... Rc8 {[%clk
0:02:54.2]} 13. Rfc1 {[%clk 0:02:55.8]} 13... Qc7 {[%clk 0:02:53]} 14. a4 {[%clk
0:02:53.7]} 14... Rfd8 {[%clk 0:02:46.5]} 15. a5 {[%clk 0:02:53.7]} 15... bxa5
{[%clk 0:02:47.4]} 16. Nb3 {[%clk 0:02:53.6]} 16... Ne5 {[%clk 0:02:19.8]} 17.
Nxa5 {[%clk 0:02:50.9]} 17... Ba8 {[%clk 0:02:19.8]} 18. Na4 {[%clk 0:02:35.4]}
18... Rb8 {[%clk 0:02:14.9]} 19. b4 {[%clk 0:02:34.9]} 19... Qd7 {[%clk
0:02:10]} 20. Bf1 {[%clk 0:01:55.9]} 20... d5 {[%clk 0:02:03.1]} 21. Nb6 {[%clk
0:01:48]} 21... Qe8 {[%clk 0:02:03.4]} 22. exd5 {[%clk 0:01:44.7]} 22... exd5
{[%clk 0:02:01.7]} 23. c5 {[%clk 0:01:43.3]} 23... d4 {[%clk 0:01:47.2]} 24. Bf4
{[%clk 0:01:40.7]} 24... Nxf3 {[%clk 0:00:52.4]} 25. gxf3 {[%clk 0:01:39.6]}
25... Bxf3+ {[%clk 0:00:53.3]} 26. Bg2 {[%clk 0:01:38.3]} 26... Ne4 {[%clk
0:00:53.7]} 27. Qb2 {[%clk 0:01:26.1]} 27... Bg5 {[%clk 0:00:32.9]} 28. Bxf3
{[%clk 0:00:41.6]} 28... Bxf4 {[%clk 0:00:32.7]} 29. Re1 {[%clk 0:00:40.9]}
29... Be3 {[%clk 0:00:33.1]} 30. Nac4 {[%clk 0:00:26]} 30... Nf2+ {[%clk
0:00:16.1]} 31. Qxf2 {[%clk 0:00:21.9]} 31... Bxf2 {[%clk 0:00:15.8]} 32. Rxe8+
{[%clk 0:00:22.8]} 32... Rxe8 {[%clk 0:00:16.6]} 33. Kg2 {[%clk 0:00:22.5]}
33... Bh4 {[%clk 0:00:16.3]} 34. c6 {[%clk 0:00:15.7]} 34... Bd8 {[%clk
0:00:13.9]} 35. Rxa6 {[%clk 0:00:14.2]} 35... d3 {[%clk 0:00:12.1]} 36. Nd5
{[%clk 0:00:13.9]} 36... Re1 {[%clk 0:00:06.7]} 37. Ra3 {[%clk 0:00:10.8]} 37...
Rc1 {[%clk 0:00:06.2]} 38. Nd2 {[%clk 0:00:04.1]} 38... Rc2 {[%clk 0:00:05.7]}
39. Rxd3 {[%clk 0:00:04.3]} 39... Bg5 {[%clk 0:00:06]} 40. c7 {[%clk 0:00:04.5]}
40... Rc8 {[%clk 0:00:06.5]} 41. Bg4 {[%clk 0:00:04.6]} 41... R8xc7 {[%clk
0:00:03.7]} 42. Nxc7 {[%clk 0:00:04.8]} 42... h5 {[%clk 0:00:04.3]} 43. Bxh5
{[%clk 0:00:03.6]} 43... Bxd2 {[%clk 0:00:04.9]} 44. Bd1 {[%clk 0:00:03.3]}
44... Rxc7 {[%clk 0:00:04]} 45. Rxd2 {[%clk 0:00:03.3]} 45... Rb7 {[%clk
0:00:04.9]} 46. Rb2 {[%clk 0:00:03.4]} 46... Kf8 {[%clk 0:00:04.4]} 47. b5
{[%clk 0:00:03.9]} 47... Ke7 {[%clk 0:00:04.9]} 48. b6 {[%clk 0:00:04.1]} 48...
Kd6 {[%clk 0:00:05.3]} 49. Bf3 {[%clk 0:00:04.7]} 49... Rb8 {[%clk 0:00:05.1]}
50. b7 {[%clk 0:00:05.3]} 50... g5 {[%clk 0:00:04.2]} 51. Rc2 {[%clk 0:00:05.4]}
51... g4 {[%clk 0:00:04]} 52. Be4 {[%clk 0:00:04.9]} 52... f5 {[%clk 0:00:04.5]}
53. Rc8 {[%clk 0:00:05.1]} 1-0

[Event "Early-Titled-Tuesday-Blitz-March-19-2024"]
[Site "Chess.com"]
[Date "2024.03.19"]
[Round "2"]
[White "Durarbayli"]
[Black "Evandro_Barbosa"]
[Result "1/2-1/2"]
[WhiteElo "2990"]
[BlackElo "2682"]
[TimeControl "180+1"]
[EndTime "8:18:52 PDT"]
[Termination "Game drawn by repetition"]

1. c4 {[%clk 0:03:00.9]} 1... c5 {[%clk 0:02:59.9]} 2. Nc3 {[%clk 0:03:00.1]}
2... Nc6 {[%clk 0:03:00.5]} 3. Nf3 {[%clk 0:02:59.8]} 3... e5 {[%clk 0:02:58.9]}
4. g3 {[%clk 0:02:57.8]} 4... g6 {[%clk 0:02:59.1]} 5. Bg2 {[%clk 0:02:58.2]}
5... Bg7 {[%clk 0:02:59.4]} 6. O-O {[%clk 0:02:58.9]} 6... d6 {[%clk 0:02:59.6]}
7. Ne1 {[%clk 0:02:59.4]} 7... Be6 {[%clk 0:02:59.1]} 8. d3 {[%clk 0:02:59.9]}
8... Nge7 {[%clk 0:02:59.4]} 9. Nc2 {[%clk 0:03:00.2]} 9... d5 {[%clk
0:02:59.4]} 10. cxd5 {[%clk 0:02:58.1]} 10... Nxd5 {[%clk 0:03:00.3]} 11. Ne3
{[%clk 0:02:55.5]} 11... Nde7 {[%clk 0:03:00.1]} 12. Bd2 {[%clk 0:02:45.4]}
12... O-O {[%clk 0:02:59.6]} 13. Rc1 {[%clk 0:02:46.1]} 13... b6 {[%clk
0:02:58.4]} 14. a3 {[%clk 0:02:46.5]} 14... a5 {[%clk 0:02:58.5]} 15. Nc4 {[%clk
0:02:41.1]} 15... Rb8 {[%clk 0:02:57.3]} 16. Nb5 {[%clk 0:02:32.6]} 16... Qd7
{[%clk 0:02:54.8]} 17. Bc3 {[%clk 0:02:23.4]} 17... Nd4 {[%clk 0:02:47.6]} 18.
Bxd4 {[%clk 0:02:23.7]} 18... exd4 {[%clk 0:02:47.6]} 19. a4 {[%clk 0:02:23.5]}
19... Nd5 {[%clk 0:02:45]} 20. Qd2 {[%clk 0:02:21.2]} 20... h5 {[%clk
0:02:42.4]} 21. e4 {[%clk 0:02:01.6]} 21... dxe3 {[%clk 0:02:41.3]} 22. fxe3
{[%clk 0:02:02.5]} 22... Nb4 {[%clk 0:02:36.7]} 23. Rcd1 {[%clk 0:01:58]} 23...
Rfd8 {[%clk 0:02:35.1]} 24. Nbd6 {[%clk 0:01:51.1]} 24... Qxa4 {[%clk
0:02:21.2]} 25. Qf2 {[%clk 0:01:50.6]} 25... Qd7 {[%clk 0:02:17.2]} 26. d4
{[%clk 0:01:21.1]} 26... cxd4 {[%clk 0:02:15.7]} 27. exd4 {[%clk 0:01:20.2]}
27... Bxc4 {[%clk 0:02:11]} 28. Nxc4 {[%clk 0:01:20.5]} 28... Bxd4 {[%clk
0:02:10.6]} 29. Ne3 {[%clk 0:01:20.3]} 29... Qe6 {[%clk 0:01:49.5]} 30. Rxd4
{[%clk 0:01:01.1]} 30... Rxd4 {[%clk 0:01:50.4]} 31. Nf5 {[%clk 0:01:01.4]}
31... Rd7 {[%clk 0:01:43.3]} 32. Bh3 {[%clk 0:00:52.1]} 32... gxf5 {[%clk
0:01:20.4]} 33. Bxf5 {[%clk 0:00:53]} 33... Qd6 {[%clk 0:01:19]} 34. Bxd7 {[%clk
0:00:53.3]} 34... Qxd7 {[%clk 0:01:18.6]} 35. Qf4 {[%clk 0:00:54.2]} 35... Nc6
{[%clk 0:00:45.9]} 36. Qg5+ {[%clk 0:00:31.4]} 36... Kf8 {[%clk 0:00:45.5]} 37.
Re1 {[%clk 0:00:19.3]} 37... Qd6 {[%clk 0:00:33.5]} 38. Qxh5 {[%clk 0:00:16.7]}
38... Qd4+ {[%clk 0:00:28.9]} 39. Kh1 {[%clk 0:00:14.9]} 39... Qg7 {[%clk
0:00:27.4]} 40. Qd5 {[%clk 0:00:10]} 40... Qg6 {[%clk 0:00:21.6]} 41. Rf1 {[%clk
0:00:05.7]} 41... Rd8 {[%clk 0:00:20.4]} 42. Qc4 {[%clk 0:00:04.2]} 42... Ne7
{[%clk 0:00:16]} 43. Qh4 {[%clk 0:00:03.9]} 43... Re8 {[%clk 0:00:10.1]} 44.
Qh8+ {[%clk 0:00:03.3]} 44... Ng8 {[%clk 0:00:10.2]} 45. Qd4 {[%clk 0:00:04.2]}
45... Qe6 {[%clk 0:00:09.2]} 46. Rf4 {[%clk 0:00:02.3]} 46... Qe1+ {[%clk
0:00:09.1]} 47. Kg2 {[%clk 0:00:03]} 47... Qe2+ {[%clk 0:00:09.5]} 48. Kh3
{[%clk 0:00:03.2]} 48... Qh5+ {[%clk 0:00:09]} 49. Rh4 {[%clk 0:00:03.9]} 49...
Qf5+ {[%clk 0:00:09]} 50. Rg4 {[%clk 0:00:03.1]} 50... Nf6 {[%clk 0:00:07.7]}
51. Qd6+ {[%clk 0:00:03.7]} 51... Re7 {[%clk 0:00:06.9]} 52. Qd8+ {[%clk
0:00:03.7]} 52... Re8 {[%clk 0:00:07]} 53. Qd6+ {[%clk 0:00:04.4]} 53... Re7
{[%clk 0:00:06.7]} 54. Qd8+ {[%clk 0:00:04.8]} 54... Re8 {[%clk 0:00:03.9]} 55.
Qd6+ {[%clk 0:00:04.9]} 1/2-1/2

[Event "Early-Titled-Tuesday-Blitz-March-19-2024"]
[Site "Chess.com"]
[Date "2024.03.19"]
[Round "2"]
[White "Rud_Makarian"]
[Black "Meri-Arabidze"]
[Result "1/2-1/2"]
[WhiteElo "2977"]
[BlackElo "2681"]
[TimeControl "180+1"]
[EndTime "8:18:54 PDT"]
[Termination "Game drawn - insufficient material"]

1. d4 {[%clk 0:03:00.9]} 1... f5 {[%clk 0:03:00]} 2. Nf3 {[%clk 0:03:00]} 2...
Nf6 {[%clk 0:02:59.9]} 3. Bg5 {[%clk 0:02:58.8]} 3... d5 {[%clk 0:02:53.4]} 4.
e3 {[%clk 0:02:58.5]} 4... Ne4 {[%clk 0:02:47.8]} 5. Bf4 {[%clk 0:02:58.2]} 5...
e6 {[%clk 0:02:46.4]} 6. h3 {[%clk 0:02:58.6]} 6... Bd6 {[%clk 0:02:46.4]} 7. c4
{[%clk 0:02:58.5]} 7... O-O {[%clk 0:02:45.6]} 8. Nc3 {[%clk 0:02:59.1]} 8... c6
{[%clk 0:02:45.2]} 9. Bd3 {[%clk 0:02:59.2]} 9... Bxf4 {[%clk 0:02:41.7]} 10.
exf4 {[%clk 0:02:59.4]} 10... Nd7 {[%clk 0:02:39]} 11. O-O {[%clk 0:02:59.1]}
11... b6 {[%clk 0:02:33.2]} 12. Re1 {[%clk 0:02:58.4]} 12... Bb7 {[%clk
0:02:29.4]} 13. Rc1 {[%clk 0:02:54.1]} 13... Qb8 {[%clk 0:02:12.8]} 14. g3
{[%clk 0:02:42.5]} 14... Qe8 {[%clk 0:02:12.3]} 15. Kh2 {[%clk 0:02:40.5]} 15...
Qh5 {[%clk 0:02:08.1]} 16. Ng5 {[%clk 0:02:29.7]} 16... Qg6 {[%clk 0:01:54.8]}
17. Qe2 {[%clk 0:02:20.4]} 17... Rae8 {[%clk 0:01:45.8]} 18. Nf3 {[%clk
0:02:17.2]} 18... Qh6 {[%clk 0:01:38.6]} 19. Ne5 {[%clk 0:01:51.3]} 19... Nxe5
{[%clk 0:01:36.7]} 20. fxe5 {[%clk 0:01:50.4]} 20... Nxc3 {[%clk 0:01:25.6]} 21.
Rxc3 {[%clk 0:01:48.6]} 21... c5 {[%clk 0:01:17.4]} 22. dxc5 {[%clk 0:01:36]}
22... bxc5 {[%clk 0:01:06.8]} 23. cxd5 {[%clk 0:01:35.4]} 23... Bxd5 {[%clk
0:01:07.7]} 24. Rxc5 {[%clk 0:01:32.6]} 24... f4 {[%clk 0:01:07.2]} 25. g4
{[%clk 0:01:22.5]} 25... Rd8 {[%clk 0:00:51.4]} 26. Be4 {[%clk 0:01:05.7]} 26...
f3 {[%clk 0:00:44.4]} 27. Qe3 {[%clk 0:01:02.3]} 27... Qxe3 {[%clk 0:00:33]} 28.
Rxe3 {[%clk 0:01:02]} 28... Bxe4 {[%clk 0:00:33.6]} 29. Rxe4 {[%clk 0:01:02.2]}
29... Rd2 {[%clk 0:00:34.3]} 30. Kg3 {[%clk 0:01:01.7]} 30... Rxb2 {[%clk
0:00:34.4]} 31. Rc7 {[%clk 0:00:41.7]} 31... Rb1 {[%clk 0:00:34]} 32. Rf4 {[%clk
0:00:37.8]} 32... Rxf4 {[%clk 0:00:32.5]} 33. Kxf4 {[%clk 0:00:38.3]} 33... Rb2
{[%clk 0:00:32.9]} 34. Kxf3 {[%clk 0:00:35.7]} 34... Rxa2 {[%clk 0:00:33]} 35.
Re7 {[%clk 0:00:33.8]} 35... Ra6 {[%clk 0:00:32.1]} 36. h4 {[%clk 0:00:28]}
36... Kf8 {[%clk 0:00:32]} 37. Rb7 {[%clk 0:00:28]} 37... Ra3+ {[%clk
0:00:31.7]} 38. Kf4 {[%clk 0:00:28.4]} 38... Ra4+ {[%clk 0:00:30.7]} 39. Kg3
{[%clk 0:00:28.6]} 39... Ra3+ {[%clk 0:00:31]} 40. f3 {[%clk 0:00:29]} 40... a5
{[%clk 0:00:31.7]} 41. h5 {[%clk 0:00:26.1]} 41... h6 {[%clk 0:00:31.7]} 42. Ra7
{[%clk 0:00:24.9]} 42... a4 {[%clk 0:00:31.5]} 43. Kf4 {[%clk 0:00:15]} 43...
Ra1 {[%clk 0:00:31.6]} 44. g5 {[%clk 0:00:12.3]} 44... hxg5+ {[%clk 0:00:30.5]}
45. Kxg5 {[%clk 0:00:12.6]} 45... a3 {[%clk 0:00:29.6]} 46. Kg6 {[%clk
0:00:09.8]} 46... a2 {[%clk 0:00:25.6]} 47. Kh7 {[%clk 0:00:07.8]} 47... Rh1
{[%clk 0:00:20.5]} 48. Ra8+ {[%clk 0:00:08]} 48... Kf7 {[%clk 0:00:16.5]} 49.
Ra7+ {[%clk 0:00:08.2]} 49... Kf8 {[%clk 0:00:16.9]} 50. Rxa2 {[%clk 0:00:06]}
50... Rxh5+ {[%clk 0:00:16.3]} 51. Kg6 {[%clk 0:00:06.7]} 51... Rxe5 {[%clk
0:00:16.4]} 52. Ra8+ {[%clk 0:00:06.5]} 52... Ke7 {[%clk 0:00:16.3]} 53. Ra7+
{[%clk 0:00:07]} 53... Kd6 {[%clk 0:00:15.4]} 54. Rxg7 {[%clk 0:00:05.3]} 54...
Rf5 {[%clk 0:00:15.2]} 55. Rf7 {[%clk 0:00:04]} 55... Rxf7 {[%clk 0:00:11.9]}
56. Kxf7 {[%clk 0:00:04.9]} 56... Ke5 {[%clk 0:00:12.5]} 57. Ke7 {[%clk
0:00:05.1]} 57... Kf4 {[%clk 0:00:12.8]} 58. Kxe6 {[%clk 0:00:05.8]} 58... Kxf3
{[%clk 0:00:13.5]} 1/2-1/2

[Event "Early-Titled-Tuesday-Blitz-March-19-2024"]
[Site "Chess.com"]
[Date "2024.03.19"]
[Round "2"]
[White "le-castor-faineant"]
[Black "GameOverBro"]
[Result "1-0"]
[WhiteElo "2293"]
[BlackElo "2590"]
[TimeControl "180+1"]
[EndTime "8:18:54 PDT"]
[Termination "le-castor-faineant won by resignation"]

1. e4 {[%clk 0:03:00.9]} 1... c5 {[%clk 0:03:00.1]} 2. Nc3 {[%clk 0:02:57.7]}
2... Nc6 {[%clk 0:03:00.4]} 3. Nf3 {[%clk 0:02:57.2]} 3... e6 {[%clk 0:03:00.4]}
4. Be2 {[%clk 0:02:52.6]} 4... a6 {[%clk 0:02:58.9]} 5. a4 {[%clk 0:02:52.2]}
5... Qc7 {[%clk 0:02:59.3]} 6. O-O {[%clk 0:02:51.9]} 6... Nf6 {[%clk 0:03:00]}
7. d3 {[%clk 0:02:50.3]} 7... Bd6 {[%clk 0:02:57.6]} 8. h3 {[%clk 0:02:49.8]}
8... Rg8 {[%clk 0:02:56.7]} 9. d4 {[%clk 0:02:42.5]} 9... cxd4 {[%clk
0:02:55.9]} 10. Nxd4 {[%clk 0:02:41.5]} 10... Nxd4 {[%clk 0:02:55.5]} 11. Qxd4
{[%clk 0:02:41.4]} 11... Be5 {[%clk 0:02:55.7]} 12. Qd3 {[%clk 0:02:39.6]} 12...
g5 {[%clk 0:02:54.5]} 13. Be3 {[%clk 0:02:27.7]} 13... b6 {[%clk 0:02:53.9]} 14.
Bd4 {[%clk 0:02:14.3]} 14... Bb7 {[%clk 0:02:53.6]} 15. Bxe5 {[%clk 0:02:11.5]}
15... Qxe5 {[%clk 0:02:54.5]} 16. Bf3 {[%clk 0:02:08.9]} 16... h5 {[%clk
0:02:53.3]} 17. Qe3 {[%clk 0:01:58]} 17... g4 {[%clk 0:02:52.2]} 18. hxg4 {[%clk
0:01:56.6]} 18... hxg4 {[%clk 0:02:46]} 19. Be2 {[%clk 0:01:56.1]} 19... Rh8
{[%clk 0:02:42.2]} 20. Qg3 {[%clk 0:01:44.5]} 20... Qxg3 {[%clk 0:02:38.7]} 21.
fxg3 {[%clk 0:01:45.4]} 21... Nxe4 {[%clk 0:02:36.1]} 22. Bxg4 {[%clk 0:01:41]}
22... Nxc3 {[%clk 0:02:26.4]} 23. bxc3 {[%clk 0:01:41.9]} 23... Rc8 {[%clk
0:02:21]} 24. Ra3 {[%clk 0:01:38.6]} 24... Rg8 {[%clk 0:02:19.3]} 25. Bf3 {[%clk
0:01:38.6]} 25... Bxf3 {[%clk 0:02:12.8]} 26. Rxf3 {[%clk 0:01:39.5]} 26... f5
{[%clk 0:02:11.8]} 27. Rb3 {[%clk 0:01:37.4]} 27... Rc6 {[%clk 0:02:10.4]} 28.
Kf2 {[%clk 0:01:36.4]} 28... Rg4 {[%clk 0:02:10.2]} 29. Rf4 {[%clk 0:01:35.9]}
29... e5 {[%clk 0:01:58.9]} 30. Rxf5 {[%clk 0:01:32.7]} 30... d6 {[%clk
0:01:55.3]} 31. Rb4 {[%clk 0:00:46.2]} 31... Rcc4 {[%clk 0:01:44.9]} 32. Rxb6
{[%clk 0:00:43.9]} 32... Ke7 {[%clk 0:01:39.1]} 33. Rxa6 {[%clk 0:00:42.6]}
33... Rxc3 {[%clk 0:01:34.8]} 34. Rf3 {[%clk 0:00:25.2]} 34... Rxc2+ {[%clk
0:01:34.6]} 35. Kg1 {[%clk 0:00:25.1]} 35... Ra2 {[%clk 0:01:30.2]} 36. a5
{[%clk 0:00:23.8]} 36... Rga4 {[%clk 0:01:30.3]} 37. Ra7+ {[%clk 0:00:21.1]}
37... Ke6 {[%clk 0:01:30]} 38. Rd3 {[%clk 0:00:04.8]} 38... e4 {[%clk
0:01:29.3]} 39. Rd1 {[%clk 0:00:04]} 39... d5 {[%clk 0:01:28.6]} 40. Ra8 {[%clk
0:00:02.5]} 40... Rxa5 {[%clk 0:01:27.5]} 41. Rd8 {[%clk 0:00:02.7]} 41... e3
{[%clk 0:01:22.7]} 42. Re8+ {[%clk 0:00:02.7]} 42... Kd6 {[%clk 0:01:19.6]} 43.
Rxe3 {[%clk 0:00:03.6]} 43... R5a4 {[%clk 0:01:18.2]} 44. Red3 {[%clk
0:00:04.5]} 44... Ra5 {[%clk 0:01:16]} 45. R3d2 {[%clk 0:00:04.8]} 45... R2a4
{[%clk 0:01:14.6]} 46. Kf2 {[%clk 0:00:05.7]} 46... Re4 {[%clk 0:01:10.9]} 47.
Rd4 {[%clk 0:00:05.7]} 47... Ra2+ {[%clk 0:01:09.8]} 48. R1d2 {[%clk 0:00:05.1]}
48... Rxd2+ {[%clk 0:01:02]} 49. Rxd2 {[%clk 0:00:05]} 49... d4 {[%clk
0:01:01.4]} 50. Kf3 {[%clk 0:00:05.1]} 50... Re3+ {[%clk 0:00:55.2]} 51. Kf4
{[%clk 0:00:04.9]} 51... Kd5 {[%clk 0:00:53.5]} 52. g4 {[%clk 0:00:04.8]} 52...
Kc4 {[%clk 0:00:53.7]} 53. g5 {[%clk 0:00:04.9]} 53... Kc3 {[%clk 0:00:54.3]}
54. Rd1 {[%clk 0:00:04.5]} 54... Re2 {[%clk 0:00:52]} 55. g4 {[%clk 0:00:03]}
55... d3 {[%clk 0:00:50.9]} 56. g6 {[%clk 0:00:03.5]} 56... Kc2 {[%clk
0:00:45.2]} 57. Ra1 {[%clk 0:00:02.2]} 57... d2 {[%clk 0:00:44.8]} 58. g7 {[%clk
0:00:02.3]} 58... Re8 {[%clk 0:00:45.3]} 59. Kf5 {[%clk 0:00:01.9]} 59... d1=Q
{[%clk 0:00:41.3]} 60. Rxd1 {[%clk 0:00:02.2]} 60... Kxd1 {[%clk 0:00:42.2]} 61.
Kf6 {[%clk 0:00:02.9]} 61... Ke2 {[%clk 0:00:42.3]} 62. Kf7 {[%clk 0:00:03.2]}
62... Re4 {[%clk 0:00:37.3]} 63. g8=Q {[%clk 0:00:02.6]} 63... Kf3 {[%clk
0:00:38.2]} 64. g5 {[%clk 0:00:02.7]} 64... Kf4 {[%clk 0:00:38.6]} 65. g6 {[%clk
0:00:03.4]} 65... Re5 {[%clk 0:00:39]} 66. Kg7 {[%clk 0:00:03.9]} 66... Rf5
{[%clk 0:00:39.8]} 67. Kh8 {[%clk 0:00:04.5]} 67... Kg5 {[%clk 0:00:40.1]} 68.
g7 {[%clk 0:00:05.1]} 68... Kh6 {[%clk 0:00:40.3]} 69. Qh7+ {[%clk 0:00:05]}
69... Kg5 {[%clk 0:00:40.7]} 70. Qxf5+ {[%clk 0:00:05.6]} 70... Kxf5 {[%clk
0:00:41.6]} 71. g8=Q {[%clk 0:00:05.9]} 1-0